fUST/lending_fUST_20260210
["ID","MTS","AMOUNT","RATE_DAILY","PERIOD"]
[404894223,1770658244791,-500.0,0.00026574,2]
[404894224,1770658244800,-500.0,0.00026574,2]
[404894225,1770658244809,-500.0,0.00026574,2]
[404894226,1770658244819,-500.0,0.00026574,2]
[404894227,1770658244829,-420.0,0.00026713,2]
[404894228,1770658244838,-265.0,0.00026713,2]
[404894229,1770658244848,-3228.6105713,0.00026802,2]
[404894230,1770658244857,-177.0,0.00027679,2]
[404894231,1770658244866,-1348.9985023,0.0002778,2]
[404894232,1770658244874,-500.0,0.00028923,2]
[404894233,1770658244883,-500.0,0.00028923,2]
[404894234,1770658244891,-500.0,0.00028923,2]
[404894235,1770658244901,-500.0,0.00028923,2]
[404894236,1770658244910,-500.0,0.00028923,2]
[404894237,1770658244920,-15779.8697979,0.00028926,2]
[404894238,1770658244930,-587.0,0.00028949,2]
[404894239,1770658244941,-3909.97275352,0.0002899,2]
[404894240,1770658244951,-206.43920384,0.0002899,2]
[404894241,1770658244961,-383273.91320157,0.00029,10]
[404894245,1770658246392,-16903.13794807,0.00029,10]
[404894246,1770658246402,-867.23,0.00029,2]
[404894247,1770658246412,-500.0,0.00029548,8]
[404894248,1770658246421,-500.0,0.00029548,8]
[404894249,1770658246431,-276.0,0.00029548,8]
[404894250,1770658246440,-500.0,0.00029548,8]
[404894251,1770658246450,-265.0,0.00029548,8]
[404894252,1770658246459,-510.0,0.00029548,8]
[404894253,1770658246469,-204.0,0.00029679,2]
[404894254,1770658246480,-8797.48716493,0.0003,20]
[404894255,1770658246490,-448.0,0.00031373,2]
[404894256,1770658246499,-231.0,0.00031679,2]
[404894257,1770658246508,-200.0,0.000323,120]
[404894258,1770658246517,-189.89846,0.00033322,2]
[404894259,1770658246527,-258.0,0.00033679,120]
[404894260,1770658246537,-1954.98637676,0.00033778,2]
[404894261,1770658246546,-208853.59685382,0.00033788,60]
[404894262,1770658246556,-536.65,0.000338,14]
[404894263,1770658246566,-488.74659419,0.00036989,3]
[404894264,1770658246575,-43811.19014405,0.00036999,120]
[404894265,1770658246585,-239.75009,0.000376,120]
[404894266,1770658246594,-200.62382963,0.00039,2]
[404894267,1770658246604,-52932.8406617,0.00039,120]
[404894268,1770658246613,-150.0,0.00039407,120]
[404894269,1770658246622,-8442.40410414,0.000399,2]
[404894270,1770658246631,-226920.25777221,0.0004,120]
[404894278,1770658264512,500.0,0.00013273,2]
[404894279,1770658264568,501.32278583,0.00013821,2]
[404894280,1770658271701,500.0,0.00013699,2]
[404894281,1770658279132,503.61341721,0.00014247,2]
[404894282,1770658279304,502.09116634,0.00013699,2]
[404894283,1770658279399,500.0,0.00013699,2]
[404894287,1770658281066,500.0,0.00013699,2]
[404894289,1770658281128,659.1472787,0.00014247,2]
[404894290,1770658282827,721.60613705,0.00013821,2]
[404894291,1770658282962,500.0,0.00013273,2]
[404894294,1770658285472,500.0,0.00013699,2]
[404894295,1770658285895,501.2343624,0.00013699,2]
[404894296,1770658285973,541.70062063,0.00013699,2]
[404894297,1770658286556,500.90872885,0.00013699,2]
[404894298,1770658289517,500.0,0.00013273,2]
[404894299,1770658289561,1000.0,0.00013821,2]
[404894300,1770658289614,455.99417575,0.00014368,2]
[404894301,1770658290278,617.92274855,0.00013699,2]
[404894302,1770658290849,500.0,0.00013273,2]
[404894303,1770658290900,1000.0,0.00013821,2]
[404894304,1770658290952,500.0,0.00014368,2]
[404894305,1770658290977,500.76073175,0.00013699,2]
[404894348,1770658319945,303.10001603,0.000189,2]
[404894349,1770658320002,152.06974462,0.00019089,2]
[404894350,1770658324207,501.04693342,0.00013699,2]
[404894351,1770658324310,500.0,0.00013273,2]
[404894352,1770658326249,422.78034438,0.00013699,2]
[404894353,1770658326655,501.34318596,0.00013273,2]
[404894363,1770658443484,500.0,0.00013699,2]
[404894364,1770658443510,500.0,0.00014247,2]
[404894365,1770658443537,500.0,0.00013699,2]
[404894368,1770658446182,500.0,0.00013273,2]
[404894375,1770658496705,500.0,0.00026801,120]
[404894378,1770658507305,500.8909093,0.00013699,2]
[404894379,1770658507438,502.03276553,0.00013273,2]
[404894380,1770658507530,776.53644137,0.00014247,2]
[404894381,1770658507557,500.0,0.00013699,2]
[404894382,1770658511212,501.90901386,0.00013699,2]
[404894383,1770658511369,500.0,0.00013699,2]
[404894384,1770658513985,500.0,0.00013699,2]
[404894385,1770658514038,505.04229117,0.00014247,2]
[404894386,1770658514685,544.35732737,0.00013699,2]
[404894387,1770658516088,500.0,0.00013273,2]
[404894388,1770658516133,1000.0,0.00013821,2]
[404894389,1770658516188,353.6239305,0.00014368,2]
[404894390,1770658518130,500.0,0.00013699,2]
[404894393,1770658524973,491.1711372,0.00013273,2]
[404894394,1770658525029,164.27280083,0.00013973,2]
[404894399,1770658527763,500.0,0.00013699,2]
[404894400,1770658527809,301.08055174,0.00014247,2]
[404894401,1770658529691,300.0,0.00013673,2]
[404894402,1770658530227,500.0,0.00013273,2]
[404894403,1770658530272,1000.0,0.00013821,2]
[404894405,1770658536575,158.86915639,0.00013699,2]
[404894406,1770658538164,500.0,0.00013699,2]
[404894407,1770658538225,500.0,0.00014247,2]
[404894437,1770658577947,500.0,0.00013699,2]
[404894438,1770658579133,400.70098843,0.00013273,2]
[404894439,1770658584786,500.0,0.00013273,2]
[404894440,1770658584853,150.0,0.00029435,120]
[404894442,1770658589167,150.0,0.00017808,2]
[404894443,1770658589223,350.0,0.00018356,2]
[404894444,1770658589589,361.13333414,0.00013273,2]
[404894448,1770658591378,500.0,0.00013273,2]
[404894449,1770658591408,1000.0,0.00013821,2]
[404894450,1770658591472,526.91838931,0.00014368,2]
[404894452,1770658595061,500.0,0.00013699,2]
[404894453,1770658595308,500.0,0.00013273,2]
[404894454,1770658595359,1000.0,0.00013821,2]
[404894458,1770658597005,500.0,0.00013699,2]
[404894459,1770658597486,500.0,0.00013699,2]
[404894463,1770658600743,357.66527031,0.00013699,2]
[404894464,1770658603479,500.0,0.00021918,2]
[404894473,1770658609440,150.0,0.00029029,120]
[404894483,1770658616081,150.0,0.00029012,120]
[404894486,1770658624039,151.39320569,0.00013673,2]
[404894487,1770658624067,500.0,0.00013699,2]
[404894488,1770658624123,332.93679327,0.00014247,2]
[404894489,1770658627610,500.0,0.00013699,2]
[404894491,1770658627663,159.48322037,0.00014247,2]
[404894492,1770658634954,1502.94219521,0.000231,2]
[404894493,1770658642940,2778.01048758,0.000231,2]
[404894501,1770658651793,5000.0,0.000231,2]
[404894502,1770658657512,150.0,0.00027518,120]
[404894503,1770658674194,5000.0,0.000231,2]
[404894505,1770658683305,535.02774418,0.00013699,2]
[404894507,1770658694395,150.0,0.00029038,120]
[404894508,1770658696628,4094.82108981,0.000231,2]
[404894513,1770658759426,150.0,0.0002942,120]
[404894514,1770658786728,150.0,0.00027441,120]
[404894515,1770658803952,191.02610688,0.00021918,2]
[404894516,1770658803981,637.50000167,0.00013273,2]
[404894517,1770658804793,608.0,0.00013273,2]
[404894518,1770658808026,150.0,0.00028967,120]
[404894519,1770658813746,300.0,0.00013673,2]
[404894520,1770658814759,607.22203791,0.00013699,2]
[404894521,1770658820596,500.0,0.00013699,2]
[404894522,1770658820663,504.78667089,0.00014247,2]
[404894523,1770658822320,499.99,0.00013699,2]
[404894524,1770658825336,500.0,0.00013699,2]
[404894525,1770658825640,500.0,0.00013699,2]
[404894527,1770658834922,200.0,0.00027,120]
[404894532,1770658867720,500.0,0.00013273,2]
[404894533,1770658867780,1000.0,0.00013821,2]
[404894534,1770658868705,460.88526396,0.00013699,2]
[404894535,1770658869395,500.0,0.00013699,2]
[404894536,1770658869786,500.0,0.00013273,2]
[404894537,1770658871206,391.86278418,0.000231,2]
[404894538,1770658883921,150.0,0.00029415,120]
[404894539,1770658886794,500.0,0.00013273,2]
[404894540,1770658886851,1000.0,0.00013821,2]
[404894541,1770658888300,436.68048105,0.00013699,2]
[404894542,1770658889965,500.0,0.00013699,2]
[404894543,1770658893861,500.0,0.00013273,2]
[404894544,1770658895010,500.0,0.00013699,2]
[404894547,1770658929180,300.0,0.00013673,2]
[404894548,1770658940610,150.0,0.00028959,120]
[404894551,1770658958724,150.0,0.00028944,120]
[404894557,1770658975539,150.0,0.00028946,120]
[404894559,1770658986023,150.0,0.00028842,120]
[404894560,1770658992439,150.0,0.00028838,120]
[404894571,1770659010561,150.0,0.00028871,120]
[404894580,1770659043700,221.23274561,0.00013699,2]
[404894614,1770659108030,500.0,0.00013273,2]
[404894615,1770659110006,209.54708386,0.00013273,2]
[404894616,1770659110847,500.0,0.00013273,2]
[404894617,1770659130980,2670.81546762,0.000231,2]
[404894634,1770659167609,500.0,0.00013273,2]
[404894635,1770659167663,1000.0,0.00013821,2]
[404894636,1770659168412,500.0,0.00013699,2]
[404894637,1770659169276,500.0,0.00013273,2]
[404894639,1770659173027,500.0,0.00013273,2]
[404894640,1770659173073,500.0,0.00013821,2]
[404894641,1770659181182,500.0,0.00013273,2]
[404894642,1770659181212,1000.0,0.00013821,2]
[404894644,1770659184239,346.22769363,0.00013699,2]
[404894650,1770659242126,-326.72922112,0.00023381,2]
[404894651,1770659242146,-150.0,0.00023739,2]
[404894652,1770659242168,-247.09,0.000244,2]
[404894653,1770659242186,-177.0,0.00025739,2]
[404894654,1770659242206,-4235.7309677,0.0002661,2]
[404894655,1770659242225,-300.0,0.00026709,2]
[404894656,1770659242245,-1200.0,0.00026709,2]
[404894657,1770659242264,-300.0,0.00026709,2]
[404894658,1770659242283,-192.19185757,0.0002671,2]
[404894659,1770659242301,-188.99968418,0.0002671,2]
[404894660,1770659242321,-194.95957513,0.0002671,2]
[404894661,1770659242343,-500.0,0.0002671,2]
[404894662,1770659242365,-500.0,0.0002671,2]
[404894663,1770659242385,-500.0,0.0002671,2]
[404894664,1770659242407,-500.0,0.0002671,2]
[404894665,1770659242428,-500.0,0.0002671,2]
[404894666,1770659242452,-500.0,0.0002671,2]
[404894667,1770659242472,-500.0,0.0002671,2]
[404894668,1770659242492,-500.0,0.0002671,2]
[404894669,1770659242512,-500.0,0.0002671,2]
[404894670,1770659242532,-500.0,0.0002671,2]
[404894671,1770659242552,-500.0,0.0002671,2]
[404894672,1770659242573,-500.0,0.0002671,2]
[404894673,1770659242593,-500.0,0.0002671,2]
[404894674,1770659242612,-500.0,0.0002671,2]
[404894675,1770659242632,-500.0,0.0002671,2]
[404894676,1770659242655,-500.0,0.0002671,2]
[404894677,1770659242673,-500.0,0.0002671,2]
[404894678,1770659242694,-500.0,0.0002671,2]
[404894679,1770659242715,-500.0,0.0002671,2]
[404894680,1770659242738,-500.0,0.0002671,2]
[404894681,1770659242764,-500.0,0.0002671,2]
[404894682,1770659242784,-500.0,0.0002671,2]
[404894683,1770659242803,-500.0,0.0002671,2]
[404894684,1770659242822,-500.0,0.0002671,2]
[404894685,1770659242843,-500.0,0.0002671,2]
[404894686,1770659242862,-366.58125629,0.0002671,2]
[404894687,1770659242883,-500.0,0.0002671,2]
[404894688,1770659242904,-500.0,0.0002671,2]
[404894689,1770659242923,-500.0,0.0002671,2]
[404894690,1770659242943,-500.0,0.0002671,2]
[404894691,1770659242962,-500.0,0.0002671,2]
[404894692,1770659242981,-500.0,0.0002671,2]
[404894693,1770659243000,-500.0,0.0002671,2]
[404894694,1770659243021,-500.0,0.0002671,2]
[404894695,1770659243041,-500.0,0.0002671,2]
[404894696,1770659243061,-500.0,0.0002671,2]
[404894697,1770659243082,-500.0,0.0002671,2]
[404894698,1770659243103,-500.0,0.0002671,2]
[404894699,1770659243123,-500.0,0.0002671,2]
[404894700,1770659243146,-500.0,0.0002671,2]
[404894701,1770659243169,-317.01417048,0.0002671,2]
[404894702,1770659243189,-186.97988858,0.0002671,2]
[404894703,1770659243208,-500.0,0.00026801,30]
[404894704,1770659243227,-200.0,0.00027397,2]
[404894705,1770659243248,-204.0,0.00027739,2]
[404894706,1770659243270,-671.11102664,0.00027949,2]
[404894707,1770659243289,-289.0,0.00028884,2]
[404894708,1770659243310,-420.0,0.00028884,2]
[404894709,1770659243329,-1554.64782968,0.00028999,2]
[404894710,1770659243351,-1200.0,0.00029012,2]
[404894711,1770659243376,-231.0,0.00029739,2]
[404894712,1770659243397,-467.0,0.00031236,2]
[404894713,1770659243419,-258.0,0.00031739,2]
[404894714,1770659243442,-150.0,0.00032062,120]
[404894715,1770659243462,-200.0,0.000323,120]
[404894716,1770659243484,-285.0,0.00033739,120]
[404894717,1770659243505,-883.71582499,0.00034169,2]
[404894718,1770659243527,-210.38,0.00035057,120]
[404894719,1770659243549,-246.0,0.00035739,120]
[404894720,1770659243569,-150.0,0.000373,15]
[404894721,1770659243591,-300.0,0.000376,15]
[404894722,1770659243611,-200.0,0.000376,120]
[404894723,1770659243634,-500.0,0.000379,15]
[404894724,1770659243658,-280.51,0.00038151,120]
[404894725,1770659243678,-1000.0,0.000382,15]
[404894726,1770659243698,-1000.0,0.000385,15]
[404894727,1770659243718,-401.0,0.00038781,11]
[404894728,1770659243738,-1000.0,0.000388,15]
[404894729,1770659243758,-1000.0,0.000391,15]
[404894730,1770659243778,-1000.0,0.000394,15]
[404894731,1770659243800,-1253.3996152,0.0003949,3]
[404894732,1770659243820,-7598.16369369,0.000395,2]
[404894733,1770659243840,-250.0,0.00039576,2]
[404894734,1770659243862,-250.0,0.00039576,2]
[404894735,1770659243883,-250.0,0.00039576,2]
[404894736,1770659243907,-250.0,0.00039576,2]
[404894737,1770659243928,-1323.44547997,0.0003959,3]
[404894762,1770659408811,500.0,0.00013273,2]
[404894793,1770659432168,-150.0,0.00034697,120]
[404894795,1770659432177,-407.26,0.00036029,2]
[404894797,1770659432189,-598.72814471,0.00036029,2]
[404894799,1770659432198,-126.49505721,0.00036029,2]
[404894802,1770659432223,-873.50494279,0.00036029,2]
[404894803,1770659432232,-150.0,0.00038468,120]
[404894805,1770659432241,-116.8778505,0.000395,2]
[404894833,1770659438266,-347.53154418,0.000395,2]
[404894840,1770659438321,-6373.93792965,0.000395,2]
[404894842,1770659438330,-3421.2261594,0.0003959,3]
[404894844,1770659438340,-72343.85195001,0.000396,2]
[404894846,1770659438352,-21746.99879925,0.000396,2]
[404894847,1770659438375,-1152.63662523,0.000396,2]
[404895049,1770659444747,-2200.0,0.000396,2]
[404895059,1770659446625,-150.0,0.00032405,120]
[404895060,1770659446634,-150.0,0.00035878,120]
[404895061,1770659446644,-48524.44925733,0.00039204,2]
[404895066,1770659447538,-5984.40556569,0.00039204,2]
[404895067,1770659447550,-3719.38317814,0.00039204,2]
[404895068,1770659447566,-429872.00894688,0.00039204,2]
[404895069,1770659447575,-2288021.13519261,0.000396,2]
[404895070,1770659466365,150.0,0.00026781,120]
[404895071,1770659466702,150.0,0.0002965,120]
[404895072,1770659466954,381.76872298,0.00013699,2]
[404895073,1770659470120,500.0,0.00013273,2]
[404895074,1770659475335,168.46137547,0.00013699,2]
[404895075,1770659476418,501.37656629,0.00013699,2]
[404895076,1770659485553,500.0,0.00013821,2]
[404895077,1770659485605,500.0,0.00013273,2]
[404895078,1770659485845,433.73288,0.00013699,2]
[404895079,1770659489978,500.0,0.00013699,2]
[404895080,1770659502098,200.77143484,0.00013699,2]
[404895082,1770659584073,500.0,0.00013273,2]
[404895083,1770659584128,279.68964175,0.00013821,2]
[404895084,1770659648196,500.0,0.00013699,2]
[404895085,1770659648222,507.49218995,0.00013699,2]
[404895090,1770659707183,500.0,0.00013273,2]
[404895091,1770659707275,267.72394717,0.00013821,2]
[404895092,1770659712271,500.0,0.00013699,2]
[404895093,1770659764762,500.0,0.00021918,2]
[404895096,1770659788497,500.0,0.00013821,2]
[404895097,1770659788566,500.0,0.00013273,2]
[404895098,1770659793333,500.0,0.00013699,2]
[404895099,1770659793389,284.74726165,0.00014247,2]
[404895100,1770659796253,500.79419168,0.00013699,2]
[404895102,1770659799784,1000.0,0.00013821,2]
[404895103,1770659799846,1500.0,0.00014368,2]
[404895104,1770659799893,500.0,0.00013273,2]
[404895105,1770659799945,176.34763367,0.00014916,2]
[404895140,1770660005198,507.96,0.000195,2]
[404895141,1770660005666,507.96,0.000196,2]
[404895142,1770660006313,507.96,0.000196,2]
[404895143,1770660006882,507.96,0.000197,2]
[404895145,1770660008574,507.96,0.000198,2]
[404895146,1770660009198,507.96,0.000199,2]
[404895147,1770660009926,507.96,0.000199,2]
[404895148,1770660010526,507.96,0.0002,2]
[404895149,1770660011191,507.96,0.000201,2]
[404895150,1770660011777,507.96,0.000201,2]
[404895151,1770660012380,507.96,0.000202,2]
[404895153,1770660012914,507.96,0.000203,2]
[404895154,1770660013503,507.96,0.000204,2]
[404895155,1770660013995,507.96,0.000204,2]
[404895157,1770660014862,507.96,0.000205,2]
[404895158,1770660015518,507.96,0.000206,2]
[404895160,1770660016131,507.96,0.000206,2]
[404895161,1770660016708,507.96,0.000207,2]
[404895162,1770660017203,507.96,0.000208,2]
[404895163,1770660017782,507.96,0.000209,2]
[404895164,1770660018910,507.96,0.000209,2]
[404895165,1770660019523,507.96,0.00021,2]
[404895166,1770660020116,507.96,0.000211,2]
[404895167,1770660020691,507.96,0.000211,2]
[404895168,1770660021217,507.96,0.000212,2]
[404895169,1770660021807,507.96,0.000213,2]
[404895170,1770660022682,507.96,0.000214,2]
[404895171,1770660023401,507.96,0.000214,2]
[404895172,1770660023958,507.96,0.000215,2]
[404895173,1770660024772,507.96,0.000216,2]
[404895174,1770660025462,507.96,0.000216,2]
[404895175,1770660026023,507.96,0.000217,2]
[404895176,1770660026641,507.96,0.000218,2]
[404895177,1770660027505,507.96,0.000219,2]
[404895178,1770660028151,507.96,0.000219,2]
[404895179,1770660028644,507.96,0.00022,2]
[404895180,1770660029240,507.96,0.000221,2]
[404895181,1770660029760,507.96,0.000221,2]
[404895182,1770660030339,507.96,0.000222,2]
[404895184,1770660030720,507.96,0.000223,2]
[404895186,1770660031640,507.96,0.000224,2]
[404895187,1770660032265,507.96,0.000224,2]
[404895188,1770660032809,507.96,0.000225,2]
[404895189,1770660033439,507.96,0.000226,2]
[404895190,1770660034079,507.96,0.000226,2]
[404895191,1770660034779,507.96,0.000227,2]
[404895192,1770660034931,200.0,0.00027,120]
[404895193,1770660035450,507.96,0.000228,2]
[404895194,1770660035929,507.96,0.000229,2]
[404895195,1770660036501,507.96,0.000229,2]
[404895196,1770660037085,507.96,0.00023,2]
[404895197,1770660065381,500.0,0.00013699,2]
[404895198,1770660065829,500.0,0.00013273,2]
[404895199,1770660065854,638.07817756,0.00013273,2]
[404895200,1770660065881,500.0,0.00013821,2]
[404895201,1770660065907,445.0193537,0.00013699,2]
[404895202,1770660069511,500.0,0.00013273,2]
[404895203,1770660069541,500.0,0.00013821,2]
[404895204,1770660070587,500.0,0.00013699,2]
[404895205,1770660071789,500.0,0.00013273,2]
[404895210,1770660139127,-358.30546992,0.0002365,2]
[404895211,1770660139147,-358.30546992,0.00023889,2]
[404895212,1770660139157,-770.39330525,0.00023889,2]
[404895229,1770660317250,614.35440468,0.00013699,2]
[404895230,1770660321242,519.93443746,0.00013273,2]
[404895238,1770660385735,287.00479948,0.00013273,2]
[404895239,1770660393235,201.9300825,0.00015068,2]
[404895240,1770660405887,500.0,0.00028123,120]
[404895241,1770660406159,500.0,0.00028123,120]
[404895242,1770660406400,500.0,0.00028123,120]
[404895243,1770660406644,500.0,0.00028124,120]
[404895244,1770660406903,500.0,0.00028124,120]
[404895245,1770660407153,500.0,0.00028124,120]
[404895246,1770660416009,1422.09955247,0.000231,2]
[404895247,1770660423982,810.44516873,0.000231,2]
[404895265,1770660547150,-6750.67449089,0.00023549,2]
[404895266,1770660547173,-150.0,0.00023599,2]
[404895267,1770660547194,-1200.0,0.00023649,2]
[404895268,1770660547213,-300.0,0.00023878,2]
[404895269,1770660547232,-9024.9598888,0.00023879,2]
[404895270,1770660547251,-265.0,0.00024373,2]
[404895271,1770660547272,-500.0,0.00024375,2]
[404895272,1770660547293,-500.0,0.00024375,2]
[404895273,1770660547312,-806.0,0.00024375,2]
[404895274,1770660547331,-213.94,0.00024375,2]
[404895275,1770660547352,-177.0,0.00025599,2]
[404895276,1770660547373,-500.0,0.00025654,2]
[404895277,1770660547392,-500.0,0.00025654,2]
[404895278,1770660547412,-500.0,0.00025654,2]
[404895279,1770660547432,-500.0,0.00025654,2]
[404895280,1770660547450,-162.03960009,0.00025654,2]
[404895281,1770660547468,-500.0,0.00025654,2]
[404895282,1770660547488,-500.0,0.00025654,2]
[404895283,1770660547507,-427.57351119,0.00025654,2]
[404895284,1770660547527,-500.0,0.00025654,2]
[404895285,1770660547549,-500.0,0.00025654,2]
[404895286,1770660547569,-530.06361036,0.00025654,2]
[404895287,1770660547589,-500.0,0.00025654,2]
[404895288,1770660547610,-500.0,0.00025654,2]
[404895289,1770660547630,-500.0,0.00025654,2]
[404895290,1770660547651,-500.0,0.00025654,2]
[404895291,1770660547671,-500.0,0.00025654,2]
[404895292,1770660547691,-500.0,0.00025654,2]
[404895293,1770660547713,-500.0,0.00025654,2]
[404895294,1770660547734,-277.0211715,0.00025654,2]
[404895295,1770660547753,-500.0,0.00025654,2]
[404895296,1770660547779,-500.0,0.00025654,2]
[404895297,1770660547801,-500.0,0.00025654,2]
[404895298,1770660547821,-500.0,0.00025654,2]
[404895299,1770660547842,-500.0,0.00025654,2]
[404895300,1770660547863,-500.0,0.00025654,2]
[404895301,1770660547883,-500.0,0.00025654,2]
[404895302,1770660547901,-500.0,0.00025654,2]
[404895303,1770660547921,-500.0,0.00025654,2]
[404895304,1770660547942,-500.0,0.00025654,2]
[404895305,1770660547961,-500.0,0.00025654,2]
[404895306,1770660547980,-500.0,0.00025654,2]
[404895307,1770660547999,-500.0,0.00025654,2]
[404895308,1770660548018,-500.0,0.00025654,2]
[404895309,1770660548039,-500.0,0.00025654,2]
[404895310,1770660548060,-500.0,0.00025654,2]
[404895311,1770660548081,-500.0,0.00025654,2]
[404895312,1770660548102,-500.0,0.00025654,2]
[404895313,1770660548123,-500.0,0.00025654,2]
[404895314,1770660548144,-500.0,0.00025654,2]
[404895315,1770660548166,-500.0,0.00025654,2]
[404895316,1770660548187,-500.0,0.00025654,2]
[404895317,1770660548208,-500.0,0.00025654,2]
[404895318,1770660548228,-500.0,0.00025654,2]
[404895319,1770660548250,-500.0,0.00025654,2]
[404895320,1770660548272,-500.0,0.00025654,2]
[404895321,1770660548293,-500.0,0.00025654,2]
[404895322,1770660548322,-500.0,0.00025654,2]
[404895323,1770660548356,-500.0,0.00025654,2]
[404895324,1770660548376,-621.66810631,0.00025654,2]
[404895325,1770660548398,-500.0,0.00025654,2]
[404895326,1770660548419,-500.0,0.00025654,2]
[404895327,1770660548440,-500.0,0.00025654,2]
[404895328,1770660548461,-500.0,0.00025654,2]
[404895329,1770660548483,-500.0,0.00025654,2]
[404895330,1770660548505,-500.0,0.00025654,2]
[404895331,1770660548624,-500.0,0.00025654,2]
[404895332,1770660548657,-500.0,0.00025654,2]
[404895333,1770660548691,-500.0,0.00025654,2]
[404895334,1770660548714,-500.0,0.00025654,2]
[404895335,1770660548736,-500.0,0.00025654,2]
[404895336,1770660548761,-500.0,0.00025654,2]
[404895337,1770660548789,-500.0,0.00025654,2]
[404895338,1770660548818,-500.0,0.00025654,2]
[404895339,1770660548843,-500.0,0.00025654,2]
[404895340,1770660548869,-500.0,0.00025654,2]
[404895341,1770660548895,-500.0,0.00025654,2]
[404895342,1770660548918,-500.0,0.00025654,2]
[404895343,1770660548941,-500.0,0.00025654,2]
[404895344,1770660548965,-500.0,0.00025654,2]
[404895345,1770660548986,-500.0,0.00025654,2]
[404895346,1770660549009,-500.0,0.00025654,2]
[404895347,1770660549033,-500.0,0.00025654,2]
[404895348,1770660549056,-500.0,0.00025654,2]
[404895349,1770660549077,-500.0,0.00025654,2]
[404895350,1770660549099,-500.0,0.00025654,2]
[404895351,1770660549120,-500.0,0.00025654,2]
[404895352,1770660549143,-500.0,0.00025654,2]
[404895353,1770660549164,-500.0,0.00025654,2]
[404895354,1770660549185,-500.0,0.00025654,2]
[404895355,1770660549205,-500.0,0.00025654,2]
[404895356,1770660549227,-500.0,0.00025654,2]
[404895357,1770660549249,-500.0,0.00025654,2]
[404895358,1770660549271,-500.0,0.00025654,2]
[404895359,1770660549291,-500.0,0.00025654,2]
[404895360,1770660549312,-500.0,0.00025654,2]
[404895361,1770660549332,-500.0,0.00025654,2]
[404895362,1770660549352,-500.0,0.00025654,2]
[404895363,1770660549372,-500.0,0.00025654,2]
[404895364,1770660549393,-500.0,0.00025654,2]
[404895365,1770660549414,-500.0,0.00025654,2]
[404895366,1770660549435,-500.0,0.00025654,2]
[404895367,1770660549457,-500.0,0.00025654,2]
[404895368,1770660549476,-500.0,0.00025654,2]
[404895369,1770660549498,-500.0,0.00025654,2]
[404895370,1770660549519,-500.0,0.00025654,2]